bitfinex/quotes_BTCUSD_20240627
["timestamp","ask_amount","ask_price","bid_price","bid_amount"]
[1719481785687,0.29872898,61225.0,61212.0,0.1169]
[1719481785890,0.32467269,61224.0,61212.0,0.1169]
[1719481786093,0.32467269,61224.0,61213.0,0.001]
[1719481786094,0.001,61214.0,61213.0,0.001]
[1719481786536,0.32467269,61224.0,61212.0,0.1169]
[1719481786766,0.001,61217.0,61213.0,0.001]
[1719481789970,0.001,61217.0,61213.0,0.002]
[1719481790169,0.001,61217.0,61213.0,0.001]
[1719481790377,0.001,61214.0,61213.0,0.002]
[1719481790781,0.001,61217.0,61213.0,0.001]
[1719481791729,0.09776839,61223.0,61212.0,0.1169]
[1719481791982,0.28244041,61222.0,61212.0,0.1169]
[1719481792196,0.001,61214.0,61213.0,0.001]
[1719481792547,0.3802088,61222.0,61212.0,0.1169]
[1719481792959,0.3802088,61222.0,61212.0,0.1179]
[1719481793157,0.13278979,61221.0,61212.0,0.1179]
[1719481793525,0.23055818,61221.0,61212.0,0.1169]
[1719481793738,0.001,61217.0,61213.0,0.001]
[1719481793938,0.23062967,61221.0,61212.0,0.1169]
[1719481794142,0.02954392,61220.0,61212.0,0.1169]
[1719481794355,0.1273838,61220.0,61212.0,0.1179]
[1719481794523,0.09783988,61219.0,61212.0,0.1179]
[1719481795471,0.09787204,61217.0,61212.0,0.1169]
[1719481795671,0.09787204,61217.0,61212.0,0.1179]
[1719481795871,0.08130346,61213.0,61212.0,0.1179]
[1719481796321,0.26021102,61216.0,61212.0,0.1169]
[1719481796493,0.09787204,61214.0,61212.0,0.1169]
[1719481796702,0.09787204,61214.0,61212.0,0.1179]
[1719481796949,0.09794274,61214.0,61212.0,0.1179]
[1719481797169,0.09794274,61214.0,61213.0,0.001]
[1719481797374,0.12242842,61214.0,61213.0,0.001]
[1719481797747,0.12242842,61214.0,61212.0,0.1179]
[1719481797955,0.12247203,61214.0,61212.0,0.1179]
[1719481798522,0.16233898,61216.0,61212.0,0.1169]
[1719481798523,0.12247203,61213.0,61212.0,0.1169]
[1719481798962,0.09901678,61213.0,61212.0,0.1179]
[1719481799161,0.09901678,61213.0,61212.0,0.1169]
[1719481799369,0.001,61213.0,61212.0,0.1169]
[1719481800427,0.1235536,61213.0,61212.0,0.1379]
[1719481800636,0.1235536,61213.0,61212.0,0.2851]
[1719481800877,0.1235536,61213.0,61212.0,0.2651]
[1719481801283,0.001,61213.0,61212.0,0.2651]
[1719481801525,0.12357722,61213.0,61212.0,0.2651]
[1719481801727,0.12357722,61213.0,61212.0,1.1890144]
[1719481801728,0.09907642,61213.0,61212.0,1.1890144]
[1719481801931,0.09907642,61213.0,61212.0,1.1880144]
[1719481802166,0.001,61213.0,61212.0,1.1880144]
[1719481802278,0.10007642,61213.0,61212.0,0.8622814]
[1719481802756,0.10008548,61213.0,61212.0,0.775199]
[1719481802974,0.002,61213.0,61212.0,0.775199]
[1719481803169,0.10008566,61213.0,61212.0,0.775199]
[1719481803589,0.10008566,61213.0,61212.0,0.2851]
[1719481803794,0.10008566,61213.0,61212.0,0.448466]
[1719481803929,0.10008999,61213.0,61212.0,0.448466]
[1719481804131,0.10008999,61213.0,61212.0,0.5682225]
[1719481805227,0.10008999,61213.0,61212.0,0.448466]
[1719481805228,0.002,61213.0,61212.0,0.448466]
[1719481805344,0.10008999,61213.0,61212.0,0.448466]
[1719481805923,0.10008999,61213.0,61212.0,0.2851]
[1719481805924,0.1000983,61213.0,61212.0,0.2851]
[1719481806103,0.1000983,61213.0,61212.0,0.2651]
[1719481808468,0.1000983,61213.0,61212.0,0.2851]
[1719481808701,0.1000983,61213.0,61212.0,0.2651]
[1719481809184,0.10012126,61213.0,61212.0,0.2651]
[1719481809405,0.002,61213.0,61212.0,0.2851]
[1719481811004,0.002,61213.0,61212.0,0.1224]
[1719481812398,0.002,61213.0,61212.0,0.002]
[1719481812622,0.01692275,61213.0,61212.0,0.002]
[1719481812849,0.002,61213.0,61212.0,0.002]
[1719481815591,0.002,61213.0,61212.0,0.002924]
[1719481815796,0.00284,61213.0,61212.0,0.002924]
[1719481815997,0.49190598,61213.0,61212.0,0.002924]
[1719481816212,1.5779553,61213.0,61212.0,0.002924]
[1719481816572,1.7046823,61213.0,61212.0,0.002924]
[1719481816775,1.71826502,61213.0,61212.0,0.002924]
[1719481816977,1.89299814,61213.0,61212.0,0.002924]
[1719481817183,1.91658204,61213.0,61212.0,0.001924]
[1719481817356,2.06283149,61213.0,61212.0,0.001924]
[1719481817943,2.05848971,61213.0,61212.0,0.001924]
[1719481818148,2.05848971,61213.0,61212.0,0.000924]
[1719481818149,2.05748971,61213.0,61212.0,0.000924]
[1719481818557,2.05748971,61213.0,61212.0,0.001924]
[1719481818558,1.96288971,61213.0,61212.0,0.001924]
[1719481818801,2.05848971,61213.0,61212.0,0.001924]
[1719481819006,2.06462162,61213.0,61212.0,0.001924]
[1719481819377,2.07462162,61213.0,61212.0,0.002924]
[1719481819717,2.24009054,61213.0,61212.0,0.002924]
[1719481819892,2.23009054,61213.0,61212.0,0.001924]
[1719481820298,2.14749054,61213.0,61212.0,0.002924]
[1719481820626,2.19070031,61213.0,61212.0,0.002924]
[1719481821438,1.99474099,61213.0,61212.0,0.002924]
[1719481821591,2.09034099,61213.0,61212.0,0.002924]
[1719481821795,1.89034099,61213.0,61212.0,0.002924]
[1719481821994,1.71128894,61213.0,61212.0,0.002924]
[1719481822234,1.89037187,61213.0,61212.0,0.002924]
[1719481822481,0.96232353,61213.0,61212.0,0.002924]
[1719481822685,1.07150654,61213.0,61212.0,0.002924]
[1719481824237,1.21848353,61213.0,61212.0,0.002924]
[1719481824439,1.21847911,61213.0,61212.0,0.002924]
[1719481824593,0.87645199,61213.0,61212.0,0.002924]
[1719481825186,0.87645021,61213.0,61212.0,0.002924]
[1719481825434,0.29076021,61213.0,61212.0,0.002924]
[1719481825624,0.02842123,61213.0,61212.0,0.261324]
[1719481825788,0.150883,61213.0,61212.0,0.261324]
[1719481826006,0.13730177,61213.0,61212.0,0.261324]
[1719481826653,0.13730177,61213.0,61212.0,0.281324]
[1719481826830,0.01484,61213.0,61212.0,0.281324]
[1719481829936,0.01484,61213.0,61212.0,0.261324]
[1719481830115,0.37557001,61213.0,61212.0,0.002924]
[1719481830543,0.25311361,61213.0,61212.0,0.002924]
[1719481831036,0.37557939,61213.0,61212.0,0.002924]
[1719481831518,0.36199901,61213.0,61212.0,0.002924]
[1719481831767,0.37557963,61213.0,61212.0,0.002924]
[1719481832010,0.37557847,61213.0,61212.0,0.002924]
[1719481834631,0.0284206,61213.0,61212.0,0.370524]
[1719481834871,0.01484,61213.0,61212.0,0.54370159]
[1719481835106,0.10393411,61219.0,61217.0,0.02]
[1719481835345,0.10393411,61219.0,61218.0,0.27770401]
[1719481835601,0.01357912,61219.0,61218.0,0.27770401]
[1719481838018,0.01357912,61219.0,61218.0,0.27870401]
[1719481838019,0.02157906,61219.0,61218.0,0.27870401]
[1719481838925,0.02757906,61219.0,61218.0,0.27970401]
[1719481839148,0.02157906,61219.0,61218.0,0.29870401]
[1719481839383,0.03629786,61224.0,61223.0,0.2588]
[1719481839624,0.0135781,61224.0,61223.0,0.26857679]
[1719481839845,0.00838,61229.0,61223.0,0.26857679]
[1719481840072,0.01357791,61228.0,61223.0,0.26857679]
[1719481840288,0.01357791,61227.0,61223.0,0.26857679]
[1719481840483,0.17071898,61229.0,61224.0,0.2588]
[1719481840484,0.01357791,61226.0,61224.0,0.2588]
[1719481840686,0.01357791,61225.0,61224.0,0.2588]
[1719481840902,0.17071898,61229.0,61224.0,0.2588]
[1719481841106,0.01357737,61228.0,61224.0,0.2588]
[1719481841335,0.20710036,61229.0,61224.0,0.2588]
[1719481842066,0.04476138,61229.0,61226.0,0.02]
[1719481842272,0.04476138,61229.0,61228.0,0.346]
[1719481842483,0.04476138,61229.0,61228.0,0.356]
[1719481842722,0.04476138,61229.0,61228.0,0.35577229]
[1719481842723,0.00838,61229.0,61228.0,0.35577229]
[1719481842926,0.00838,61229.0,61228.0,0.26017229]
[1719481843133,0.00838,61229.0,61228.0,0.36577229]
[1719481843506,0.00838,61229.0,61228.0,0.35577229]
[1719481843708,0.00838,61229.0,61228.0,0.48511702]
[1719481843934,0.01638,61229.0,61228.0,0.49611702]
[1719481844135,0.01638,61229.0,61228.0,0.36677229]
[1719481844331,0.01638,61229.0,61228.0,0.36877229]
[1719481844533,0.01638,61229.0,61228.0,0.35877229]
[1719481844783,0.01638,61229.0,61228.0,0.36877229]
[1719481845007,0.01638,61229.0,61228.0,0.37877229]
[1719481845434,0.00838,61229.0,61228.0,0.42549529]
[1719481845642,0.00838,61235.0,61234.0,0.489922]
[1719481845827,0.00838,61235.0,61234.0,0.87258889]
[1719481845991,0.00838,61235.0,61234.0,0.95984778]
[1719481846192,0.00838,61235.0,61234.0,1.61307778]
[1719481846395,0.00838,61235.0,61234.0,1.51747778]
[1719481846601,0.00838,61235.0,61234.0,1.28646278]
[1719481847365,0.00838,61235.0,61234.0,1.77541676]
[1719481847578,0.00838,61235.0,61234.0,1.79841676]
[1719481847778,0.00838,61235.0,61234.0,0.53763278]
[1719481848002,0.00838,61235.0,61234.0,0.63323278]
[1719481848333,0.00838,61235.0,61234.0,0.28706689]
[1719481848520,0.00838,61235.0,61234.0,0.54597389]
[1719481848727,0.00838,61235.0,61234.0,0.45037389]
[1719481849794,0.00838,61235.0,61234.0,0.43037389]
[1719481850156,0.00838,61235.0,61234.0,0.45037389]
[1719481850288,0.00838,61235.0,61234.0,0.26706689]
[1719481850487,0.01338,61235.0,61234.0,0.36476728]
[1719481850687,0.01338,61235.0,61234.0,0.52807428]
[1719481851108,0.01338,61235.0,61234.0,1.18130428]
[1719481851707,0.01338,61235.0,61234.0,0.85468928]
[1719481852827,0.00338,61235.0,61234.0,0.85468928]
[1719481853239,0.00338,61235.0,61234.0,0.36476728]
[1719481853441,0.00338,61235.0,61234.0,0.52807428]
[1719481855576,0.00338,61235.0,61234.0,0.85468928]
[1719481856036,0.00338,61235.0,61234.0,1.18130428]
[1719481856244,0.00338,61235.0,61234.0,1.34364326]
[1719481857526,0.03559176,61246.0,61242.0,0.193286]
[1719481857737,0.00838,61247.0,61242.0,1.52597098]
[1719481857963,0.00838,61247.0,61242.0,1.86221124]
[1719481859015,0.00838,61247.0,61246.0,0.836377]
[1719481859240,0.00838,61247.0,61246.0,1.59643064]
[1719481859461,0.00838,61247.0,61246.0,1.72952624]
[1719481860315,0.00838,61247.0,61246.0,1.73752624]
[1719481860521,0.00838,61247.0,61246.0,1.98602624]
[1719481860882,0.00838,61247.0,61246.0,1.97602624]
[1719481861084,0.00838,61247.0,61246.0,1.98602624]
[1719481861255,0.00838,61247.0,61246.0,1.97602624]
[1719481862671,0.00838,61247.0,61246.0,0.29916366]
[1719481862843,0.00838,61247.0,61246.0,0.46243866]
[1719481863043,0.00838,61247.0,61246.0,0.27916366]
[1719481863476,0.00838,61247.0,61246.0,0.29916366]
[1719481863685,0.00838,61247.0,61246.0,0.78898966]
[1719481863849,0.00838,61247.0,61246.0,0.90054483]
[1719481864049,0.00838,61247.0,61246.0,0.89254483]
[1719481864430,0.00838,61247.0,61246.0,1.05688381]
[1719481864645,0.00838,61247.0,61246.0,1.06688381]
[1719481865025,0.00838,61247.0,61246.0,0.74033281]
[1719481865220,0.00838,61247.0,61246.0,1.06688381]
[1719481865865,0.00838,61247.0,61246.0,1.71798581]
[1719481866027,0.00838,61247.0,61246.0,1.74098581]
[1719481866359,0.00838,61247.0,61246.0,1.74698581]
[1719481866581,0.00838,61247.0,61246.0,1.73698581]
[1719481866779,0.00838,61247.0,61246.0,1.73098581]
[1719481866983,0.00838,61247.0,61246.0,1.74598581]
[1719481867195,0.72858821,61266.0,61264.0,0.1182]
[1719481867406,0.72858821,61266.0,61265.0,0.02]
[1719481867608,0.72858821,61266.0,61265.0,0.02962338]
[1719481868086,0.72858821,61266.0,61265.0,0.19284838]
[1719481868475,0.72858821,61266.0,61265.0,0.51929838]
[1719481868687,0.72858821,61266.0,61265.0,0.30384442]
[1719481868892,0.72858821,61266.0,61265.0,0.14061942]
[1719481869514,0.72858821,61266.0,61265.0,0.02962338]
[1719481870154,0.72858821,61266.0,61265.0,0.03262338]
[1719481871429,0.72858821,61266.0,61265.0,0.01662338]
[1719481872518,0.72858821,61266.0,61265.0,0.007]
[1719481873180,0.72858821,61266.0,61265.0,0.004]
[1719481874443,1.70703919,61266.0,61265.0,0.004]
[1719481874863,2.03348419,61266.0,61265.0,0.004]
[1719481875072,2.03508419,61266.0,61265.0,0.004]
[1719481875523,0.326467,61262.0,61250.0,0.02]
[1719481875746,0.163243,61259.0,61250.0,0.02]
[1719481875951,0.163238,61261.0,61254.0,0.00956671]
[1719481876162,0.163239,61260.0,61254.0,0.00956671]
[1719481876370,0.163239,61260.0,61248.0,0.1154]
[1719481876577,0.163239,61260.0,61250.0,0.02]
[1719481876786,0.163236,61261.0,61254.0,0.04732]
[1719481877192,0.163236,61261.0,61255.0,0.00956581]
[1719481877399,0.326463,61263.0,61255.0,0.00956581]
[1719481877601,0.163251,61255.0,61254.0,0.001]
[1719481877808,0.489754,61255.0,61254.0,0.001]
[1719481878016,0.163251,61255.0,61248.0,0.1154]
[1719481878473,0.163251,61255.0,61254.0,0.001]
[1719481878687,0.32649,61258.0,61254.0,0.001]
[1719481878688,0.163248,61257.0,61254.0,0.001]
[1719481879532,0.326482,61260.0,61254.0,0.001]
[1719481879761,0.163244,61258.0,61249.0,0.02]
[1719481880174,1.05663521,61266.0,61255.0,0.02]
[1719481880382,0.163229,61264.0,61255.0,0.02]
[1719481880796,0.163232,61263.0,61254.0,0.02]
[1719481881015,1.05663521,61266.0,61254.0,0.02]
[1719481881016,0.72858821,61266.0,61255.0,0.14336468]
[1719481881220,0.72858821,61266.0,61257.0,0.02]
[1719481881428,0.72858821,61266.0,61257.0,0.02326457]
[1719481881636,0.72858821,61266.0,61261.0,0.02]
[1719481882047,0.72858821,61266.0,61263.0,0.02]
[1719481882247,0.72858821,61266.0,61265.0,0.02]
[1719481882457,0.72858821,61266.0,61262.0,0.163231]
[1719481882631,0.72858821,61266.0,61264.0,0.2685]
[1719481883066,0.72858821,61266.0,61264.0,0.431727]
[1719481883316,0.72858821,61266.0,61265.0,0.02]
[1719481883545,0.72858821,61266.0,61265.0,0.183225]
[1719481883964,0.72858821,61266.0,61265.0,0.02]
[1719481884620,0.72858821,61266.0,61265.0,0.28735378]
[1719481885336,0.72858821,61266.0,61265.0,0.61380378]
[1719481885561,0.72858821,61266.0,61265.0,0.28735378]
[1719481885759,0.72858821,61266.0,61265.0,0.61380378]
[1719481885962,0.72858821,61266.0,61265.0,0.94025378]
[1719481886182,0.72858821,61266.0,61265.0,1.10259276]
[1719481886332,0.72858821,61266.0,61265.0,1.10359276]
[1719481886981,0.72858821,61266.0,61265.0,1.10659276]
[1719481887190,0.72858821,61266.0,61265.0,1.11559276]
[1719481887389,0.72858821,61266.0,61265.0,1.11159276]
[1719481887591,0.72858821,61266.0,61265.0,1.36239276]
[1719481887915,0.72858821,61266.0,61265.0,1.38295822]
[1719481888900,0.72858821,61266.0,61265.0,1.70940822]
[1719481889297,0.72858821,61266.0,61265.0,1.81766822]
[1719481889298,0.47298957,61266.0,61265.0,1.81766822]
[1719481889504,0.47298957,61266.0,61265.0,2.04066822]
[1719481889680,0.47298957,61266.0,61265.0,1.73240822]
[1719481890206,0.47298957,61266.0,61265.0,1.72340822]
[1719481890405,0.47298957,61266.0,61265.0,1.73340822]
[1719481890565,0.47298957,61266.0,61265.0,1.72240822]
[1719481891348,0.47298957,61266.0,61265.0,1.74540822]
[1719481891511,0.47298957,61266.0,61265.0,1.73540822]
[1719481891713,0.47298957,61266.0,61265.0,1.73140822]
[1719481892113,0.47298957,61266.0,61265.0,1.72140822]
[1719481892315,0.47298957,61266.0,61265.0,1.73140822]
[1719481892517,0.47298957,61266.0,61265.0,1.72140822]
[1719481892759,0.47298957,61266.0,61265.0,1.71240822]
[1719481892936,0.47298957,61266.0,61265.0,1.72240822]
[1719481893155,0.47298957,61266.0,61265.0,1.73540822]
[1719481893545,0.47298957,61266.0,61265.0,1.72240822]
[1719481893927,0.47298957,61266.0,61265.0,1.73640822]
[1719481894542,0.47298957,61266.0,61265.0,1.75040822]
[1719481894971,0.47298957,61266.0,61265.0,1.29582944]
[1719481895174,0.47298957,61266.0,61265.0,0.96037944]
[1719481895579,0.47298957,61266.0,61265.0,0.63392944]
[1719481895786,0.47298957,61266.0,61265.0,0.96037944]
[1719481896006,0.47298957,61266.0,61265.0,0.94637944]
[1719481896287,0.32328957,61266.0,61265.0,1.96974315]
[1719481896480,0.32328957,61266.0,61265.0,1.86161315]
[1719481896683,0.32328957,61266.0,61265.0,1.87161315]
[1719481896987,0.32328957,61266.0,61265.0,1.86161315]
[1719481897168,0.32328957,61266.0,61265.0,1.52116315]
[1719481897569,0.32328957,61266.0,61265.0,0.60592417]
[1719481897775,0.32328957,61266.0,61265.0,0.00956546]
[1719481897978,0.32328957,61266.0,61265.0,0.04356546]
[1719481898178,0.32328957,61266.0,61265.0,0.197225]
[1719481898449,0.32328957,61266.0,61265.0,0.22137211]
[1719481898860,0.32328957,61266.0,61265.0,0.87427211]
[1719481899041,0.32328957,61266.0,61265.0,1.01419682]
[1719481899381,0.03515988,61266.0,61265.0,1.10909682]
[1719481899586,0.03515988,61266.0,61265.0,1.7361858]
[1719481899811,0.03515988,61266.0,61265.0,1.7511858]
[1719481900015,0.03515988,61266.0,61265.0,1.7501858]
[1719481900261,0.03515988,61266.0,61265.0,1.7461858]
[1719481900461,0.03515988,61266.0,61265.0,1.7691858]
[1719481900664,0.03515988,61266.0,61265.0,1.7751858]
[1719481901041,0.03515988,61266.0,61265.0,1.7591858]
[1719481901225,0.03515988,61266.0,61265.0,1.7691858]
[1719481901420,0.03515988,61266.0,61265.0,1.7831858]
[1719481901823,0.03515988,61266.0,61265.0,1.8831858]
[1719481902451,0.03515988,61266.0,61265.0,1.8901858]
[1719481902653,0.03515988,61266.0,61265.0,1.8761858]
[1719481902860,0.03515988,61266.0,61265.0,1.8691858]
[1719481903120,0.03515988,61266.0,61265.0,1.8761858]
[1719481903573,0.03515988,61266.0,61265.0,1.8691858]
[1719481903989,0.03515988,61266.0,61265.0,1.8871858]
[1719481904207,0.03515988,61266.0,61265.0,2.4236358]
[1719481904409,0.03515988,61266.0,61265.0,2.2236358]
[1719481904610,0.03515988,61266.0,61265.0,2.3956358]
[1719481905151,0.03515988,61266.0,61265.0,2.6937658]
[1719481906522,0.03515988,61266.0,61265.0,2.4937658]
[1719481906944,0.03515988,61266.0,61265.0,2.5207658]
[1719481907152,0.03515988,61266.0,61265.0,2.7207658]
[1719481907562,0.03515988,61266.0,61265.0,2.6937658]
[1719481907776,0.03515988,61266.0,61265.0,2.7077658]
[1719481907987,0.03515988,61266.0,61265.0,2.7217658]
[1719481908170,0.03515988,61266.0,61265.0,2.5217658]
[1719481908362,0.03515988,61266.0,61265.0,2.5077658]
[1719481909737,0.03515988,61266.0,61265.0,2.7077658]
[1719481909968,0.03515988,61266.0,61265.0,2.5077658]
[1719481910184,0.03515988,61266.0,61265.0,2.7077658]
[1719481910630,0.03515988,61266.0,61265.0,2.7217658]
[1719481910859,0.03515988,61266.0,61265.0,3.4206158]
[1719481911105,0.00838,61275.0,61265.0,3.4206158]
[1719481911106,0.00838,61275.0,61274.0,0.691331]
[1719481911318,0.00838,61275.0,61274.0,2.27568233]
[1719481911527,0.00838,61275.0,61274.0,2.85070187]
[1719481913342,0.00838,61275.0,61274.0,2.12429987]
[1719481913610,0.00838,61275.0,61274.0,2.13329987]
[1719481913836,0.00838,61275.0,61274.0,2.12429987]
[1719481914248,0.00838,61275.0,61274.0,2.13829987]
[1719481914708,0.00838,61275.0,61274.0,2.15029987]
[1719481915141,0.00838,61275.0,61274.0,2.13829987]
[1719481915367,0.00838,61275.0,61274.0,2.15229987]
[1719481917276,0.00838,61275.0,61274.0,2.35229987]
[1719481918327,0.00838,61275.0,61274.0,2.15229987]
[1719481918583,0.00838,61275.0,61274.0,2.35229987]
[1719481919815,0.00838,61275.0,61274.0,2.55229987]
[1719481920314,0.00838,61275.0,61274.0,2.87870187]
[1719481921048,0.00839,61279.0,61274.0,2.87870187]
[1719481921049,0.00839,61279.0,61275.0,0.01]
[1719481921269,0.00838,61297.0,61280.0,1.576785]
[1719481921495,0.00838,61297.0,61280.0,2.13822398]
[1719481921730,0.00838,61297.0,61280.0,3.17058654]
[1719481921966,0.00838,61297.0,61280.0,3.40058654]
[1719481922186,0.00838,61297.0,61280.0,3.23739649]
[1719481922431,0.00838,61297.0,61280.0,3.46739649]
[1719481923351,0.00838,61297.0,61296.0,0.193142]
[1719481923588,0.00838,61297.0,61296.0,0.70476598]
[1719481923818,0.00838,61297.0,61296.0,1.71023598]
[1719481924056,0.00838,61297.0,61296.0,1.86919075]
[1719481925152,0.00838,61297.0,61296.0,2.10769075]
[1719481926301,0.00838,61297.0,61296.0,2.12169075]
[1719481928667,0.00838,61297.0,61296.0,2.64797575]
[1719481928965,0.00838,61297.0,61296.0,2.96010575]
[1719481929198,0.00675664,61297.0,61296.0,2.96010575]
[1719481933971,0.00675664,61297.0,61296.0,1.46236964]
[1719481934417,0.00675664,61297.0,61296.0,0.04479066]
[1719481934418,0.26355664,61297.0,61296.0,0.04479066]
[1719481934632,0.26355664,61297.0,61296.0,0.03803366]
[1719481935331,0.26355664,61297.0,61296.0,0.05803366]
[1719481935761,0.26355664,61297.0,61296.0,0.04403366]
[1719481935977,0.26355664,61297.0,61296.0,0.08405773]
[1719481936190,0.26355664,61297.0,61296.0,0.03003366]
[1719481936448,0.26355664,61297.0,61296.0,0.03803366]
[1719481936657,0.26355664,61297.0,61296.0,0.008]
[1719481936874,0.26355664,61297.0,61296.0,0.0089772]
[1719481937085,0.26355664,61297.0,61292.0,0.02]
[1719481937317,0.26355664,61297.0,61296.0,0.013]
[1719481937741,0.26355664,61297.0,61296.0,0.007]
[1719481939456,0.26455664,61297.0,61296.0,0.007]
[1719481939678,0.26455664,61297.0,61292.0,0.02]
[1719481939890,0.26355664,61297.0,61292.0,0.02]
[1719481940315,0.04266886,61296.0,61293.0,0.00897989]
[1719481940542,0.26555664,61297.0,61293.0,0.00897989]
[1719481940750,0.26455664,61297.0,61292.0,0.02]
[1719481940968,0.26555664,61297.0,61292.0,0.02]
[1719481941192,0.26755664,61297.0,61293.0,0.00897989]
[1719481941403,0.26555664,61297.0,61293.0,0.00897989]
[1719481941638,0.26555664,61297.0,61289.0,0.02]
[1719481941858,0.26555664,61297.0,61288.0,0.02]
[1719481942072,0.26555664,61297.0,61291.0,0.02]
[1719481942277,0.26555664,61297.0,61289.0,0.00898348]
[1719481942484,0.26555664,61297.0,61292.0,0.00898079]
[1719481942704,0.26355664,61297.0,61288.0,0.02]
[1719481942914,0.001,61296.0,61293.0,0.00897989]
[1719481943120,0.001,61296.0,61288.0,0.02]
[1719481943327,0.26455664,61297.0,61288.0,0.02]
[1719481943529,0.26455664,61297.0,61289.0,0.00898348]
[1719481944209,0.26455664,61297.0,61290.0,0.00898258]
[1719481944432,0.001,61296.0,61290.0,0.00898258]
[1719481944647,0.001,61296.0,61287.0,0.02]
[1719481944854,0.26455664,61297.0,61291.0,0.00898169]
[1719481945063,0.2632,61296.0,61285.0,0.636369]
[1719481945276,0.2632,61296.0,61287.0,0.02]
[1719481945697,0.2632,61296.0,61289.0,0.02]
[1719481946107,0.2632,61296.0,61285.0,0.79870998]
[1719481946108,0.2632,61296.0,61290.0,0.00898258]
[1719481946563,0.2632,61296.0,61287.0,0.02]
[1719481946772,0.2632,61296.0,61291.0,0.00898169]
[1719481946988,0.2632,61296.0,61287.0,0.02]
[1719481947167,0.2632,61296.0,61288.0,0.00901646]
[1719481947387,0.2632,61296.0,61287.0,0.02]
[1719481947600,0.2642,61296.0,61287.0,0.02]
[1719481947843,0.2642,61296.0,61288.0,0.00901646]
[1719481948057,0.2632,61296.0,61288.0,0.00901646]
[1719481948494,0.2642,61296.0,61288.0,0.00901646]
[1719481949179,0.163161,61289.0,61288.0,0.00901646]
[1719481949386,0.425861,61289.0,61288.0,0.00901646]
[1719481949815,0.2539,61292.0,61285.0,0.4732]
[1719481950036,0.743407,61286.0,61285.0,0.4732]
[1719481950262,0.417069,61286.0,61285.0,0.4732]
[1719481950495,0.2,61285.0,61268.0,0.48782074]
[1719481950701,0.163214,61269.0,61268.0,0.48782074]
[1719481950919,0.163214,61269.0,61259.0,0.1629]
[1719481951131,0.2385,61279.0,61259.0,0.1629]
[1719481951345,0.2385,61279.0,61259.0,0.1829]
[1719481951346,0.163224,61266.0,61259.0,0.1829]
[1719481951556,0.0097,61265.0,61260.0,0.02]
[1719481952012,0.0097,61265.0,61262.0,0.02]
[1719481952254,0.0097,61265.0,61260.0,0.0232644]
[1719481952680,0.0097,61265.0,61262.0,0.02]
[1719481952901,0.0097,61265.0,61260.0,0.0032644]
[1719481952902,0.0107,61269.0,61266.0,0.02]
[1719481953110,0.0107,61269.0,61268.0,0.02]
[1719481953111,0.001,61269.0,61268.0,0.02]
[1719481953315,0.001,61269.0,61268.0,0.18560277]
[1719481953950,0.001,61269.0,61268.0,0.16233898]
[1719481954166,0.001,61269.0,61267.0,0.02]
[1719481954387,0.001,61269.0,61267.0,0.16233898]
[1719481954598,0.172893,61277.0,61267.0,0.16233898]
[1719481954805,0.0097,61277.0,61267.0,0.16233898]
[1719481955009,0.172893,61277.0,61267.0,0.16233898]
[1719481955219,0.0499262,61276.0,61267.0,0.16233898]
[1719481955422,0.163198,61275.0,61264.0,0.02]
[1719481955639,0.0097,61277.0,61270.0,0.02]
[1719481955816,0.0097,61277.0,61268.0,0.02]
[1719481956512,0.0097,61277.0,61270.0,0.02]
[1719481957131,0.0097,61277.0,61267.0,0.001]
[1719481957132,0.0097,61277.0,61272.0,0.02]
[1719481957338,0.0097,61277.0,61270.0,0.02]
[1719481957735,0.0097,61277.0,61271.0,0.01208226]
[1719481958158,0.0127,61277.0,61271.0,0.01208226]
[1719481958363,0.0147,61277.0,61271.0,0.01208226]
[1719481958570,0.0649258,61277.0,61271.0,0.01208226]
[1719481958783,0.163196,61276.0,61268.0,0.001]
[1719481958993,0.163196,61276.0,61269.0,0.01208526]
[1719481959420,0.163199,61275.0,61271.0,0.001]
[1719481959631,0.0117,61277.0,61271.0,0.001]
[1719481959632,0.163205,61273.0,61271.0,0.001]
[1719481960277,0.163205,61273.0,61264.0,0.0232642]
[1719481960538,0.163205,61273.0,61270.0,0.001]
[1719481960923,0.163205,61273.0,61264.0,0.02]
[1719481961165,0.169408,61272.0,61262.0,0.02]
[1719481961372,0.169408,61272.0,61265.0,0.01209125]
[1719481961373,0.163215,61269.0,61265.0,0.01209125]
[1719481961586,0.163215,61269.0,61262.0,0.02]
[1719481962030,0.163216,61269.0,61262.0,0.02]
[1719481962454,0.326418,61271.0,61255.0,0.1]
[1719481962455,0.163217,61268.0,61260.0,0.02]
[1719481962657,0.326426,61270.0,61256.0,0.02]
[1719481962858,0.326426,61270.0,61255.0,0.1]
[1719481962859,0.163226,61265.0,61261.0,0.0121661]
[1719481963066,0.163226,61265.0,61255.0,0.12]
[1719481963067,0.0062,61264.0,61255.0,0.02]
[1719481963293,0.0062,61264.0,61262.0,0.0121646]
[1719481963504,0.0062,61264.0,61251.0,0.164185]
[1719481963505,0.0062,61264.0,61254.0,0.02]
[1719481963506,0.163235,61261.0,61254.0,0.02]
[1719481963744,0.163235,61261.0,61251.0,0.000924]
[1719481963745,0.2128276,61260.0,61251.0,0.066306]
[1719481963960,0.2128276,61260.0,61255.0,0.01217509]
[1719481964172,0.2128276,61260.0,61251.0,0.000924]
[1719481964408,0.163242,61259.0,61251.0,0.000924]
[1719481964619,0.05392936,61258.0,61252.0,0.01217959]
[1719481965282,0.05392936,61258.0,61253.0,0.02]
[1719481965492,0.05392936,61258.0,61252.0,0.03217959]
[1719481965722,0.05392936,61258.0,61254.0,0.01217659]
[1719481966155,0.05392936,61258.0,61252.0,0.02]
[1719481966365,0.02171654,61257.0,61252.0,0.02]
[1719481966578,0.05392936,61258.0,61253.0,0.01217809]
[1719481967520,0.163231,61263.0,61253.0,0.01217809]
[1719481967731,0.163234,61262.0,61254.0,0.02]
[1719481967938,0.001,61258.0,61256.0,0.02]
[1719481968141,0.001,61258.0,61253.0,0.02]
[1719481968555,0.001,61258.0,61256.0,0.02]
[1719481969041,0.16323,61263.0,61252.0,0.016]
[1719481969042,0.16323,61263.0,61257.0,0.01217209]